Cogmind - Beta 13 @@@ ROGUE MODE // 2024.04.17 @ 02:18:06 Player: cptwinky Result: Destroyed 0b10! Performance ------------- Evolutions (9) 4500 Regions Visited (26) 5200 Robots Destroyed (149) 745 Value Destroyed (4123) 4123 Prototype IDs (107) 2140 Alien Tech Used (2) 400 Bonus (20584) 20584 TOTAL SCORE: 37692 Bonus ------- Triggered Max Security 1000 High Alert Combat Kills 305 Follower Combat Kills 392 Aligned with FarCom 300 Met Data Miner 300 Met Zhirov 300 Met Warlord at Base 500 MAIN.C Attacked Warlord 500 Met Warlord at Research 2000 Met Sigix 2000 Escaped with Sigix 10000 Win 3000 Friendly Fire -13 Cogmind --------- Core Integrity 1549/1600 Matter 60/300 Energy 46/240 System Corruption 0% Temperature Cool (4) Movement Flying (33) Location Tau Ceti IV Orbit Parts ------- > --- POWER (2) -------- Micro Antimatter Reactor Light Quantum Reactor > --- PROPULSION (8) --- Field Propulsion Array Field Propulsion Array Impulse Thruster Array Impulse Thruster Array > --- UTILITY (13) ----- Medium Storage Unit Machine Analyzer Advanced Transmission Jammer Advanced ECM Suite Advanced Phase Shifter Hacking Suite Improved Hacking Suite Advanced Hacking Suite Advanced Hacking Suite System Shield Advanced System Shield > --- WEAPON (2) ------- Gravity Flail > --- INVENTORY (10) --- Improved Diametric Drive Transdimensional Reconstructor Cooled Plasma Cannon Vortex Driver (10) Tiamat Missile Launcher Advanced Remote Datajack Sigix Containment Pod Sigix Containment Pod Peak State ------------ > --- POWER ------------ Micro Antimatter Reactor Light Quantum Reactor > --- PROPULSION ------- Field Propulsion Array Field Propulsion Array Impulse Thruster Array Impulse Thruster Array > --- UTILITY ---------- Medium Storage Unit Machine Analyzer Advanced Transmission Jammer Advanced ECM Suite Reaction Control System Advanced Phase Shifter Improved Light Armor Plating Hacking Suite Improved Hacking Suite Advanced Hacking Suite Advanced Hacking Suite System Shield Advanced System Shield > --- WEAPON ----------- Tiamat Missile Launcher Gravity Flail > --- INVENTORY -------- Quantum Reactor Improved Diametric Drive Transdimensional Reconstructor Cooled Plasma Cannon Vortex Driver Advanced Remote Datajack Sigix Containment Pod Sigix Containment Pod [Rating: 161] Favorites ----------- Power Micro Nuclear Core Engine Ion Engine Power Core Micro Nuclear Core Reactor Micro Antimatter Reactor Propulsion Improved VTOL Module Treads Improved Treads Leg Aluminum Leg Hover Unit Cooled Antigrav System Flight Unit Improved VTOL Module Utility Improved Hacking Suite Device Component Analysis Suite Storage Medium Storage Unit Processor Improved Melee Analysis Suite Hackware Improved Hacking Suite Protection Improved Light Armor Plating Weapon Medium Laser Energy Gun Medium Laser Energy Cannon Cooled Plasma Cannon Ballistic Gun Heavy Assault Rifle Launcher Tiamat Missile Launcher Special Weapon Improved Plasma Cutter Impact Weapon Power Maul Slashing Weapon Katana Special Melee Weapon Datajack Build | -11 -10 -10 -10 -9 -8 -8 -8 -6 -6 -6 -6 -5 -5 -5 -5 -5 -4 -4 -4 -4 -4 -3 -3 -3 -2 -1 ------- Run | Yrd Mat Min Exi Min Mat Sto Rec Fac Low Low Dat Pro Fac Upp Upp War Pro Fac Upp Upp Zhi Pro Res Qua Res Acc Slots Evolved 18 | . . . . . 4 . . 4 . . . . 2 . . . . 2 . . . . 2 . 2 2 Power 1 | . . . . . . . . 1 . . . . . . . . . . . . . . . . . . Propulsion 6 | . . . . . 1 . . 2 . . . . 1 . . . . 1 . . . . . . 1 . Utility 11 | . . . . . 3 . . 1 . . . . 1 . . . . 1 . . . . 2 . 1 2 Weapon . | . . . . . . . . . . . . . . . . . . . . . . . . . . . Parts Attached 263 | 3 8 5 3 6 38 46 10 8 7 11 1 11 11 7 5 19 . 11 2 . 9 2 18 7 11 4 Power 20 | . . . . . 2 5 . 1 . . . . . 1 . 3 . . 1 . 2 . 3 . 1 1 Engine 6 | . . . . . 2 4 . . . . . . . . . . . . . . . . . . . . Core 5 | . . . . . . 1 . 1 . . . . . 1 . 2 . . . . . . . . . . Reactor 9 | . . . . . . . . . . . . . . . . 1 . . 1 . 2 . 3 . 1 1 Propulsion 38 | 2 2 . . . 9 10 2 1 . 2 . . 1 . . 4 . 1 . . . . 3 . 1 . Treads 20 | 2 2 . . . 9 7 . . . . . . . . . . . . . . . . . . . . Leg 1 | . . . . . . . . . . . . . . . . 1 . . . . . . . . . . Wheel . | . . . . . . . . . . . . . . . . . . . . . . . . . . . Hover 1 | . . . . . . . . . . . . . . . . 1 . . . . . . . . . . Flight 16 | . . . . . . 3 2 1 . 2 . . 1 . . 2 . 1 . . . . 3 . 1 . Utility 124 | . 4 . 1 3 20 20 4 6 3 9 1 6 5 3 1 7 . 3 1 . 4 2 7 4 8 2 Device 55 | . 3 . . 1 9 8 2 2 1 7 . 3 2 2 . 1 . 1 . . . 2 3 3 3 2 Storage 8 | . 1 . 1 . . 3 . . . . . . . . . 1 . . . . 1 . . . 1 . Processor 4 | . . . . . 2 1 . . . . . . . . . . . . . . . . 1 . . . Hackware 14 | . . . . . . 1 2 4 . . . . 1 . . . . 1 . . 1 . . . 4 . Protection 43 | . . . . 2 9 7 . . 2 2 1 3 2 1 1 5 . 1 1 . 2 . 3 1 . . Artifact . | . . . . . . . . . . . . . . . . . . . . . . . . . . . Weapon 81 | 1 2 5 2 3 7 11 4 . 4 . . 5 5 3 4 5 . 7 . . 3 . 5 3 1 1 Energy Gun 9 | 1 1 3 1 . 3 . . . . . . . . . . . . . . . . . . . . . Energy Cannon 13 | . . . . . . . . . 1 . . . 1 1 1 1 . 3 . . 1 . 2 1 . 1 Ballistic Gun 7 | . . . . 2 1 3 . . . . . 1 . . . . . . . . . . . . . . Ballistic Cannon . | . . . . . . . . . . . . . . . . . . . . . . . . . . . Launcher 14 | . . 2 . 1 1 2 . . 1 . . 1 . 1 1 1 . 1 . . . . 1 1 . . Special Weapon 5 | . . . . . . . . . . . . 1 1 . . 2 . . . . 1 . . . . . Impact Weapon 23 | . . . . . . 1 3 . 2 . . 2 3 1 2 1 . 3 . . 1 . 2 1 1 . Slashing Weapon 6 | . . . . . 2 4 . . . . . . . . . . . . . . . . . . . . Piercing Weapon . | . . . . . . . . . . . . . . . . . . . . . . . . . . . Special Melee Weapon 4 | . 1 . 1 . . 1 1 . . . . . . . . . . . . . . . . . . . Unidentified Prototypes 20 | . . . . . . 4 . . . . . 1 . . . 8 . . . . 3 . 1 1 1 1 Corrupted Parts 2 | . . . . . . . 2 . . . . . . . . . . . . . . . . . . . System Corruption 4 | . . . . . . . 4 . . . . . . . . . . . . . . . . . . . Parts Lost 22 | . . 1 . . 5 2 . . . . . . . 3 . . . 3 1 . . . 3 2 . 2 Power 5 | . . . . . 1 1 . . . . . . . 1 . . . 1 . . . . 1 . . . Propulsion 3 | . . . . . 2 . . . . . . . . 1 . . . . . . . . . . . . Utility 11 | . . 1 . . 1 1 . . . . . . . 1 . . . 1 1 . . . 1 2 . 2 Weapon 3 | . . . . . 1 . . . . . . . . . . . . 1 . . . . 1 . . . Highest Loss Streak 4 | . . 1 . . 4 1 . . . . . . . 2 . . . 3 1 . . . 2 1 . 1 To Critical Strikes . | . . . . . . . . . . . . . . . . . . . . . . . . . . . Average Slot Usage (%) 91 | . 100 96 85 97 92 97 89 85 86 89 93 93 88 86 82 89 94 80 79 84 82 84 77 83 81 83 Engine 6 | . 14 14 14 14 8 7 . . . . . . . . . . . . . . . . . . . . Core 3 | . . . . . . 1 9 13 13 13 13 13 11 11 11 10 11 5 5 5 5 5 2 . . . Treads 15 | . 28 28 28 28 22 24 . . . . . . . . . . . . . . . . . . . . Flight 10 | . . . . . . 2 27 26 26 29 33 33 29 27 23 25 29 26 26 26 26 26 19 19 17 16 Device 8 | . 14 10 . . 8 9 8 6 7 11 8 6 5 7 5 5 5 5 5 5 . 1 10 8 8 15 Storage 8 | . 14 14 14 14 9 9 9 6 6 6 6 6 5 5 5 5 5 5 5 5 6 8 4 4 4 4 Processor 8 | . . . . . 16 16 9 6 6 6 6 6 5 5 5 5 5 5 5 5 5 5 5 9 7 4 Hackware 6 | . . . . . . . 12 18 13 13 13 13 17 17 17 17 17 15 13 10 10 15 14 12 21 24 Protection 5 | . . . . 11 8 8 6 . 4 1 4 5 4 2 4 5 5 10 10 15 14 10 8 9 4 3 Energy Gun 6 | . 27 28 15 16 5 . . . . . . . . . . 1 . . . . . . . . . . Ballistic Gun 1 | . . . . 11 5 . . . . . . . . . . . . . . . . . . . . . Impact Weapon 1 | . . . . . . . 2 6 5 6 6 4 . 3 5 4 5 4 5 5 1 5 3 3 4 4 Slashing Weapon 4 | . . . . . 6 15 . . . . . . . . . . . . . . . . . . . . Naked Turns . | . . . . . . . . . . . . . . . . . . . . . . . . . . . Heaviest Build 61 | 13 19 19 28 32 40 43 22 25 28 28 28 33 35 38 38 38 36 37 45 45 52 38 56 54 57 61 Greatest Support 69 | 40 46 46 46 46 69 66 24 29 29 33 29 35 42 42 37 44 44 55 46 46 46 46 62 53 62 62 Greatest Overweight (x) 2 | . . . . . . 2 1 . . . . 1 2 . 1 1 . . . . 1 . 1 1 . . Average Overweight (x) . | . . . . . . . . . . . . . . . . . . . . . . . . . . . Largest Inventory Capacity 15 | 8 10 10 15 15 15 15 10 10 10 10 10 10 10 10 10 10 10 10 10 10 10 10 10 10 10 10 Average Capacity 12 | 8 9 10 13 15 15 14 10 10 10 10 10 10 10 10 10 10 10 10 10 10 10 10 10 10 10 10 Most Carried 15 | 6 10 10 12 14 15 15 10 10 10 10 10 10 10 10 10 10 10 10 10 9 10 10 10 10 10 10 Average Carried 11 | 6 9 9 11 13 14 14 9 9 8 9 10 10 9 8 9 9 10 9 9 9 9 10 9 9 9 8 Final Capacity 15 | 8 10 10 15 15 15 10 10 10 10 10 10 10 10 10 10 10 10 10 10 10 10 10 10 10 10 10 Final Carried 14 | 6 10 10 12 14 14 10 10 9 10 10 10 10 10 10 10 10 10 10 9 9 10 10 10 10 9 10 Class Distribution -------------------- 28% | Hacker-Sprinter 27% | Mutant 18% | Trapper-Gladiator 9% | Trapper-Mutant 6% | Wizard-Sprinter Dominant Class ---------------- Mutant | -10/Materials Mutant | -10/Mines Mutant | -10/Exiles Mutant | -9/Mines Trapper-Mutant | -8/Materials Trapper-Gladiator | -8/Storage Sprinter | -8/Recycling Hacker-Sprinter | -6/Factory Hacker-Sprinter | -6/Lower Caves Hacker-Sprinter | -6/Lower Caves Hacker-Sprinter | -6/Data Miner Hacker-Sprinter | -5/Proximity Caves Hacker-Sprinter | -5/Factory Hacker-Sprinter | -5/Upper Caves Hacker-Sprinter | -5/Upper Caves Hacker-Sprinter | -5/Warlord Hacker-Sprinter | -4/Proximity Caves Hacker-Sprinter | -4/Factory Hacker-Sprinter | -4/Upper Caves Hacker-Sprinter | -4/Upper Caves Hacker-Mutant | -4/Zhirov Hacker-Sprinter | -3/Proximity Caves Hacker-Sprinter | -3/Research Hacker-Sprinter | -3/Quarantine Wizard-Sprinter | -2/Research Wizard-Sprinter | -1/Access Resources | -11 -10 -10 -10 -9 -8 -8 -8 -6 -6 -6 -6 -5 -5 -5 -5 -5 -4 -4 -4 -4 -4 -3 -3 -3 -2 -1 ----------- Run | Yrd Mat Min Exi Min Mat Sto Rec Fac Low Low Dat Pro Fac Upp Upp War Pro Fac Upp Upp Zhi Pro Res Qua Res Acc Matter Collected 3320 | 191 134 55 30 88 561 488 10 170 85 110 . 65 220 122 68 134 44 167 10 . 118 30 195 . 225 . Remotely . | . . . . . . . . . . . . . . . . . . . . . . . . . . . Salvage Created 5132 | . 318 142 . 14 1192 1494 58 23 111 41 . 24 126 72 43 . 44 200 . . 184 . 361 . 412 273 Parts 232 | . 9 14 . 6 60 83 . . 3 . . 1 1 2 5 . 1 6 . . 2 . 8 . 13 18 Haulers Intercepted 12 | . 1 . . . 1 6 . . . . . . . . . . . 1 . . . . . . 3 . Recyclers Shooed 2 | . . . . . 2 . . . . . . . . . . . . . . . . . . . . . Parts Field Recycled . | . . . . . . . . . . . . . . . . . . . . . . . . . . . Retrieved Matter . | . . . . . . . . . . . . . . . . . . . . . . . . . . . Parts Self-Destructed 21 | . . . . . . . . . 2 9 . . . 1 8 . . . . . 1 . . . . . Prevented 1 | . . . . . . . . . . . . . . . . . . . . . . 1 . . . . Kills | -11 -10 -10 -10 -9 -8 -8 -8 -6 -6 -6 -6 -5 -5 -5 -5 -5 -4 -4 -4 -4 -4 -3 -3 -3 -2 -1 ------- Run | Yrd Mat Min Exi Min Mat Sto Rec Fac Low Low Dat Pro Fac Upp Upp War Pro Fac Upp Upp Zhi Pro Res Qua Res Acc Combat Hostiles Destroyed 98 | . 8 5 . 3 23 25 . . 3 1 . 2 1 3 5 . . 4 . . . . 5 . 3 7 Melee 26 | . . . . . 5 20 . . . 1 . . . . . . . . . . . . . . . . Guns 25 | . 8 2 . . 13 2 . . . . . . . . . . . . . . . . . . . . Cannons 2 | . . . . . . . . . . . . . . . . . . . . . . . . . . 2 AOE 38 | . . 3 . 3 4 3 . . 3 . . 2 . 3 4 . . 3 . . . . 2 . 3 5 Classes Destroyed 15 | . 4 . . 1 7 1 . . . 1 . . . . . . . . . . . . 1 . . . Worker 11 | . . . . . 1 . . . . . . . . . . . . 1 . . . . 2 . 1 6 Builder 4 | . . . . . . . . . . . . . . . . . . . . . . . 1 . 1 2 Tunneler 4 | . . . . 1 2 . . . . . . . . . . . . . . . . . . . . 1 Hauler 12 | . 1 . . . 1 6 . . . . . . . . . . . 1 . . . . . . 3 . Recycler 7 | . . . . . 1 2 . . . . . . 1 . . . . . . . . . 2 . . 1 Minesweeper 1 | . . . . . . . . . . 1 . . . . . . . . . . . . . . . . Mechanic 2 | . . . . . 1 . . . . . . . . . . . . . . . . . 1 . . . Operator 4 | . 1 . . . 1 . . 1 . . . . . . . . . . . . . . . . 1 . Watcher 6 | . . . . . 1 2 . . . . . . . . . . . 2 . . . . . . 1 . Swarmer 50 | . 3 3 . 3 4 7 . . 3 1 . 2 1 1 5 . . 4 . . . . 5 . 3 5 Grunt 27 | . 5 2 . . 12 7 . . . . . . . 1 . . . . . . . . . . . . Duelist 2 | . . . . . 1 . . . . . . . . 1 . . . . . . . . . . . . Protector 1 | . . . . . . 1 . . . . . . . . . . . . . . . . . . . . Sentry 15 | . . . . . 4 10 . . . . . . . . . . . . . . . . . . . 1 Hunter 3 | . . . . . 2 . . . . . . . . . . . . . . . . . . . . 1 Decomposer 2 | . . . . . . . . . . . . . . . . . 2 . . . . . . . . . Best Kill Streak 17 | . 3 3 . 3 5 6 . 1 3 1 . 2 1 3 5 . . 3 . . . . 4 . 5 17 Combat Bots Only 6 | . 3 3 . 3 4 6 . . 3 1 . 2 1 3 5 . . 3 . . . . 2 . 3 5 Max Kills in Single Turn 5 | . 1 3 . 2 4 2 . 1 3 1 . 2 1 2 2 . 1 2 . . . . 2 . 5 4 Gunslinging . | . . . . . . . . . . . . . . . . . . . . . . . . . . . Exploded 3 | . . 3 . 2 3 2 . . 3 . . 2 . 2 2 . . 2 . . . . 2 . 3 2 Melee 1 | . . . . . 1 1 . . . 1 . . . . . . . . . . . . . . . . Uniques/NPCs Destroyed . | . . . . . . . . . . . . . . . . . . . . . . . . . . . Combat | -11 -10 -10 -10 -9 -8 -8 -8 -6 -6 -6 -6 -5 -5 -5 -5 -5 -4 -4 -4 -4 -4 -3 -3 -3 -2 -1 -------- Run | Yrd Mat Min Exi Min Mat Sto Rec Fac Low Low Dat Pro Fac Upp Upp War Pro Fac Upp Upp Zhi Pro Res Qua Res Acc Hostile Shots Fired 592 | . 41 12 . 1 100 91 . 3 16 8 . 24 6 41 17 14 . 26 16 3 . 20 57 37 7 52 Missed 238 | . 13 1 . 1 17 22 . 3 13 1 . 9 3 21 8 10 . 12 9 1 . 11 24 21 5 33 Damage Taken 5909 | . 295 154 . . 1320 926 . . 38 77 . 229 48 340 149 40 . 244 143 45 . 209 739 368 68 477 Core 901 | . 71 15 . . 132 121 . . 24 10 . . . 40 88 . . 21 35 . . 23 202 68 . 51 Absorbed by Shields . | . . . . . . . . . . . . . . . . . . . . . . . . . . . Redirected to Shielding 425 | . . . . . 44 . . . . . . . . . . . . 60 33 20 . 101 59 108 . . Ignored by Resistances 24 | . . . . . 24 . . . . . . . . . . . . . . . . . . . . . Regen/Repaired (Parts) 971 | . . . . . 400 200 . . . . . . . . . 79 . . . . . . 292 . . . Core Remaining (%) 85 | 100 . . . 65 . . 54 . . . . 96 . . . . 87 . . . . 93 . 79 100 96 Volleys Fired 190 | . 34 13 . 2 52 13 . . 2 . . 5 6 18 3 . . 8 . . 6 . 6 1 1 20 Largest 2 | . 2 2 . 1 2 1 . . 1 . . 1 1 1 1 . . 1 . . 1 . 1 1 1 1 Hottest 100 | . 90 90 . 33 85 33 . . 43 . . 43 35 43 43 . . 43 . . 35 . 100 100 46 100 Shots Fired 283 | . 68 22 . 2 102 13 . . 2 . . 5 6 18 3 . . 8 . . 6 . 6 1 1 20 Gun 199 | . 68 20 . . 100 10 . . . . . 1 . . . . . . . . . . . . . . Cannon 42 | . . . . . . . . . 1 . . . 2 14 1 . . 6 . . 2 . 3 1 . 12 Launcher 33 | . . 2 . 2 2 3 . . 1 . . 3 . 4 2 . . 2 . . . . 3 . 1 8 Special 9 | . . . . . . . . . . . . 1 4 . . . . . . . 4 . . . . . Kinetic 61 | . . . . . 50 10 . . . . . 1 . . . . . . . . . . . . . . Thermal 166 | . 68 20 . . 50 . . . 1 . . . 2 14 1 . . 6 . . 2 . 2 . . . Explosive 32 | . . 1 . 2 2 3 . . 1 . . 3 . 4 2 . . 2 . . . . 3 . 1 8 Electromagnetic 1 | . . 1 . . . . . . . . . . . . . . . . . . . . . . . . Entropic 14 | . . . . . . . . . . . . . . . . . . . . . . . 1 1 . 12 Robot Hit Streak 27 | . 16 8 . . 27 7 . . 8 . . 9 4 3 1 . . . . . 4 . 3 . 1 6 Robot Miss Streak 4 | . 3 2 . . 3 4 . . . . . 1 3 . 1 . . . . . 1 . 2 . . 4 Penetration Max 1 | . . . . . . . . . . . . . . . . . . . . . . . . . . 1 Secondary Targets 2 | . 1 . . . 1 . . . . . . . . . . . . . . . . . . . . . Max Gunslinging Chain 1 | . 1 . . . 1 . . . . . . . . . . . . . . . . . . . . . Shots Hit Robots 317 | . 50 16 4 . 95 79 2 4 2 2 . 5 4 3 2 . 2 6 . . 7 . 13 . 10 11 Core Hits 161 | . 16 8 . 3 47 35 . . 2 1 . 3 . 8 4 . 1 2 . . . . 8 . 7 16 Critical Kills . | . . . . . . . . . . . . . . . . . . . . . . . . . . . Critical Parts Destroyed 14 | . . . . . . 1 . 1 . . . . 1 . . . 1 3 . . 1 . 3 . 3 . Critical Strikes 30 | . 3 . . . 3 5 . 1 . . . . 1 . . . 1 3 . . 1 . 3 . 3 6 Burn 5 | . 3 . . . 2 . . . . . . . . . . . . . . . . . . . . . Destroy 1 | . . . . . . 1 . . . . . . . . . . . . . . . . . . . . Smash 13 | . . . . . . . . 1 . . . . 1 . . . 1 3 . . 1 . 3 . 3 . Sever 5 | . . . . . 1 4 . . . . . . . . . . . . . . . . . . . . Sunder 6 | . . . . . . . . . . . . . . . . . . . . . . . . . . 6 Melee Attacks 278 | . . . 4 . 25 86 5 13 6 5 . 4 5 4 4 6 5 18 2 . 2 2 36 23 14 9 Impact 162 | . . . . . . . 4 13 6 5 . 4 5 4 4 6 5 18 2 . 2 2 36 23 14 9 Slashing 111 | . . . . . 25 86 . . . . . . . . . . . . . . . . . . . . Piercing . | . . . . . . . . . . . . . . . . . . . . . . . . . . . Sneak Attacks 35 | . . . 4 . 2 11 1 2 . 1 . . 1 . . . 2 3 . . . . 5 . 3 . Combat Hostiles 4 | . . . . . . 1 1 1 . . . . . . . . . 1 . . . . . . . . Follow-up Attacks 8 | . . . . . 2 6 . . . . . . . . . . . . . . . . . . . . Damage Inflicted 15356 | . 598 220 . 157 2415 3651 91 317 365 90 . 506 248 600 448 . 184 762 . . 293 . 1239 . 1089 2083 Guns 2059 | . 597 178 . . 1115 162 . . . . . 7 . . . . . . . . . . . . . . Cannons 923 | . . . . . . . . . . . . . . . . . . . . . 80 . . . . 843 Explosions 4772 | . . 40 . 144 350 188 . . 246 . . 466 . 600 390 . . 245 . . . . 431 . 432 1240 Melee 7527 | . . . . . 891 3301 91 317 119 90 . 33 248 . 58 . 184 517 . . 213 . 808 . 657 . Ramming 75 | . 1 2 . 13 59 . . . . . . . . . . . . . . . . . . . . . Kinetic 657 | . . . . . 488 162 . . . . . 7 . . . . . . . . . . . . . . Thermal 1482 | . 597 178 . . 627 . . . . . . . . . . . . . . . 80 . . . . . Explosive 4732 | . . . . 144 350 188 . . 246 . . 466 . 600 390 . . 245 . . . . 431 . 432 1240 Electromagnetic 40 | . . 40 . . . . . . . . . . . . . . . . . . . . . . . . Impact 3335 | . . . . . . . 91 317 119 90 . 33 248 . 58 . 184 517 . . 213 . 808 . 657 . Slashing 4192 | . . . . . 891 3301 . . . . . . . . . . . . . . . . . . . . Piercing . | . . . . . . . . . . . . . . . . . . . . . . . . . . . Entropic 843 | . . . . . . . . . . . . . . . . . . . . . . . . . . 843 Highest Corruption 4 | . . . . . . . 4 . . . . . . . . . . . . . . 3 . . . . Average Corruption 2 | . . . . . . . 1 . . . . . . . . . . . . . . 2 . . . . Corruption Purged . | . . . . . . . . . . . . . . . . . . . . . . . . . . . Corruption Blocked 14 | . . . . . . . . . . . . . . . . . . . . . . . . . 14 . Effects 1 | . . . . . . . . . . . . . . . . . . . . . . 1 . . . . Message Errors 1 | . . . . . . . . . . . . . . . . . . . . . . 1 . . . . Overload Shots . | . . . . . . . . . . . . . . . . . . . . . . . . . . . Overflow Damage 2538 | . . . . . 179 242 51 160 128 29 . . 133 50 52 . 90 335 . . 142 . 449 . 326 172 Projectiles 141 | . . . . . . . . . . . . . . . . . . . . . 58 . . . . 83 Explosions 253 | . . . . . 54 . . . 21 . . . . 50 . . . 21 . . . . . . 18 89 Melee 2144 | . . . . . 125 242 51 160 107 29 . . 133 . 52 . 90 314 . . 84 . 449 . 308 . Knockbacks 10 | . . . . . . . . 2 . 1 . . 1 . 1 . . 1 . . . . 2 . 2 . Impact 10 | . . . . . . . . 2 . 1 . . 1 . 1 . . 1 . . . . 2 . 2 . Kinetic . | . . . . . . . . . . . . . . . . . . . . . . . . . . . Secondary . | . . . . . . . . . . . . . . . . . . . . . . . . . . . Self-Inflicted Damage 128 | . . . . . 20 . . . 21 . . 29 . . . . . . . . . . 28 . . 30 Shots 5 | . . . . . 1 . . . 1 . . 1 . . . . . . . . . . 1 . . 1 Rammed 15 | . 1 3 . 1 10 . . . . . . . . . . . . . . . . . . . . . Targets Rammed 19 | . 1 3 . 2 13 . . . . . . . . . . . . . . . . . . . . . Kicked . | . . . . . . . . . . . . . . . . . . . . . . . . . . . Crushed 4 | . . . . 1 3 . . . . . . . . . . . . . . . . . . . . . Highest Temperature 255 | . 255 162 . . 90 4 . . 8 20 . 157 98 112 12 83 159 25 111 200 70 . 36 . . 128 Average Temperature 48 | . 62 69 . . 25 2 . . 6 10 . 67 30 35 7 32 63 10 50 98 37 . 18 . . 58 Received Heat Transfer 1488 | . 144 87 . . 729 315 . . . . . 81 . 9 . . . 18 12 . . . 66 . . 27 Siege Activations . | . . . . . . . . . . . . . . . . . . . . . . . . . . . Robots Corrupted . | . . . . . . . . . . . . . . . . . . . . . . . . . . . Combat Hostiles . | . . . . . . . . . . . . . . . . . . . . . . . . . . . Parts Fried 25 | . . . . . . . 1 3 . 1 . . 1 . . . . 3 . . . . 11 . 5 . Impact Corruptions 56 | . . . . . . . 2 5 5 2 . . 5 . 2 . 2 8 . . 3 . 15 . 7 . Robots Melted 2 | . 1 . . . 1 . . . . . . . . . . . . . . . . . . . . . Combat Hostiles 1 | . . . . . 1 . . . . . . . . . . . . . . . . . . . . . Parts Melted 8 | . 5 1 . . 1 1 . . . . . . . . . . . . . . . . . . . . Heat Transferred 4045 | . 1784 459 . . 1702 . . . . . . . . . . . . . . . 100 . . . . . Parts Sabotaged . | . . . . . . . . . . . . . . . . . . . . . . . . . . . Parts Stolen . | . . . . . . . . . . . . . . . . . . . . . . . . . . . Parts Stripped . | . . . . . . . . . . . . . . . . . . . . . . . . . . . Power Chain Reactions 3 | . . 3 . . . . . . . . . . . . . . . . . . . . . . . . Alert | -11 -10 -10 -10 -9 -8 -8 -8 -6 -6 -6 -6 -5 -5 -5 -5 -5 -4 -4 -4 -4 -4 -3 -3 -3 -2 -1 ------- Run | Yrd Mat Min Exi Min Mat Sto Rec Fac Low Low Dat Pro Fac Upp Upp War Pro Fac Upp Upp Zhi Pro Res Qua Res Acc Peak Influence 1796 | . 120 114 . 133 422 350 125 243 . . . . 198 . . . . 432 . . . . 280 1796 1126 1218 Initial 1100 | . . 30 . . 24 79 113 52 . . . . 72 . . . . . . . . . . 157 1100 528 Average 228 | . 58 50 . 33 166 205 121 110 . . . . 129 . . . . 295 . . . . 185 1653 966 690 Maximum Alert Level 5 | . . . . . 2 1 . 1 . . . . . . . . . 2 . . . . 1 5 4 4 Low Security (%) 64 | 100 100 100 . 100 72 42 100 89 . . . . 100 . . . . 20 . . . . 44 . . . Level 1 24 | . . . . . 24 57 . 10 . . . . . . . . . 65 . . . . 55 . . . Level 2 3 | . . . . . 2 . . . . . . . . . . . . 14 . . . . . . . 67 Level 3 5 | . . . . . . . . . . . . . . . . . . . . . . . . . 94 22 Level 4 . | . . . . . . . . . . . . . . . . . . . . . . . . . 5 10 Level 5 . | . . . . . . . . . . . . . . . . . . . . . . . . . . . High Security . | . . . . . . . . . . . . . . . . . . . . . . . . . . . Max Security 1 | . . . . . . . . . . . . . . . . . . . . . . . . 99 . . Squads Dispatched 30 | . 3 . . . 5 3 . 1 . . . . 3 . . . . 3 . . . . 2 6 1 3 Investigation 9 | . 1 . . . 1 1 . 1 . . . . 2 . . . . 3 . . . . . . . . Extermination 1 | . . . . . . . . . . . . . . . . . . . . . . . 1 . . . Reinforcement 9 | . 2 . . . 4 . . . . . . . 1 . . . . . . . . . 1 . 1 . Assault 8 | . . . . . . 2 . . . . . . . . . . . . . . . . . 6 . . Garrison 3 | . . . . . . . . . . . . . . . . . . . . . . . . . . 3 Intercept . | . . . . . . . . . . . . . . . . . . . . . . . . . . . Searches Triggered 1 | . . . . . . . . . . . . . . . . . . 1 . . . . . . . . Construction Impeded 1 | . . . . . 1 . . . . . . . . . . . . . . . . . . . . . Haulers Reinforced 2 | . . . . . . . . . . . . . 1 . . . . . . . . . . . 1 . Active Scanning Responses . | . . . . . . . . . . . . . . . . . . . . . . . . . . . Cargo Convoy Interrupts . | . . . . . . . . . . . . . . . . . . . . . . . . . . . Stealth | -11 -10 -10 -10 -9 -8 -8 -8 -6 -6 -6 -6 -5 -5 -5 -5 -5 -4 -4 -4 -4 -4 -3 -3 -3 -2 -1 --------- Run | Yrd Mat Min Exi Min Mat Sto Rec Fac Low Low Dat Pro Fac Upp Upp War Pro Fac Upp Upp Zhi Pro Res Qua Res Acc Distress Signals 16 | . 2 . . . 4 2 . . . . . . . . . . . . . . . . 1 . 4 3 Communications Jammed 12 | . . . . . . . . . . . . . . . . . . . . . . . 1 7 1 3 Distress Signals 12 | . . . . . . . . . . . . . . . . . . . . . . . 1 7 1 3 Times Spotted 245 | . 12 5 . 2 32 36 . 10 6 5 . 8 7 9 8 8 . 22 12 3 . 9 15 14 10 12 Peak Tracking Total 14 | . 2 2 . 4 5 5 . 4 4 3 . 5 3 7 8 3 . 12 8 3 . 7 9 14 5 7 Tactical Retreats 48 | . 1 . . 1 2 5 . . 1 1 . 4 1 3 2 1 . 5 3 1 . 2 5 2 1 7 Traps | -11 -10 -10 -10 -9 -8 -8 -8 -6 -6 -6 -6 -5 -5 -5 -5 -5 -4 -4 -4 -4 -4 -3 -3 -3 -2 -1 ------- Run | Yrd Mat Min Exi Min Mat Sto Rec Fac Low Low Dat Pro Fac Upp Upp War Pro Fac Upp Upp Zhi Pro Res Qua Res Acc Traps Triggered 6 | . . . . . . 1 . 2 . . . . 1 . . . . . . . . . . 1 1 . Indirectly . | . . . . . . . . . . . . . . . . . . . . . . . . . . . Trap Hack Attempts 6 | . 6 . . . . . . . . . . . . . . . . . . . . . . . . . Triggered . | . . . . . . . . . . . . . . . . . . . . . . . . . . . Disarmed . | . . . . . . . . . . . . . . . . . . . . . . . . . . . Reprogrammed 3 | . 3 . . . . . . . . . . . . . . . . . . . . . . . . . Reused 26 | . . . . . 10 4 . . . 6 . 4 2 . . . . . . . . . . . . . Traps Reconfigurated 25 | . . . . . 12 7 . . . . . . 6 . . . . . . . . . . . . . Traps Extracted 20 | . 3 . . . 10 7 . . . . . . . . . . . . . . . . . . . . Installed 30 | . . . . . 9 11 . . . 6 . 4 . . . . . . . . . . . . . . Triggered 30 | . . . . . 10 4 . . . 4 . 4 2 . . 4 . . . . . 2 . . . . Most Traps Carried 8 | . 3 3 3 7 8 8 4 4 4 4 4 4 . . . . . . . . . . . . . . Machines | -11 -10 -10 -10 -9 -8 -8 -8 -6 -6 -6 -6 -5 -5 -5 -5 -5 -4 -4 -4 -4 -4 -3 -3 -3 -2 -1 ---------- Run | Yrd Mat Min Exi Min Mat Sto Rec Fac Low Low Dat Pro Fac Upp Upp War Pro Fac Upp Upp Zhi Pro Res Qua Res Acc Machines Disabled 18 | . . . . . 1 4 . 3 . 1 . . 1 . . . . . 1 . . . 3 3 . 1 Max in Single Turn 1 | . . . . . 1 1 . 1 . 1 . . 1 . . . . . 1 . . . 1 1 . 1 Garrison Access 3 | . . . . . . 1 . . . . . . . . . . . 1 . . . . . . 1 . Machines Repaired . | . . . . . . . . . . . . . . . . . . . . . . . . . . . Machines Dismantled . | . . . . . . . . . . . . . . . . . . . . . . . . . . . Machines Sabotaged . | . . . . . . . . . . . . . . . . . . . . . . . . . . . Overloaded Fab Kills . | . . . . . . . . . . . . . . . . . . . . . . . . . . . Hacking | -11 -10 -10 -10 -9 -8 -8 -8 -6 -6 -6 -6 -5 -5 -5 -5 -5 -4 -4 -4 -4 -4 -3 -3 -3 -2 -1 --------- Run | Yrd Mat Min Exi Min Mat Sto Rec Fac Low Low Dat Pro Fac Upp Upp War Pro Fac Upp Upp Zhi Pro Res Qua Res Acc Machines Accessed 100 | . 4 1 2 1 8 18 7 10 1 3 3 . 8 1 1 2 . 10 . . 4 . 6 . 3 7 Terminals 56 | . 3 1 . 1 6 13 6 5 . . . . 4 . . . . 5 . . . . 4 . 2 6 Fabricators 7 | . . . . . . . . 3 . . . . 1 . . . . 2 . . . . . . . 1 Repair Stations 5 | . . . . . 1 2 . . . . . . . . . . . . . . . . 2 . . . Recycling Units 12 | . 1 . . . 1 2 1 2 . . . . 3 . . . . 2 . . . . . . . . Scanalyzers . | . . . . . . . . . . . . . . . . . . . . . . . . . . . Garrison Access 3 | . . . . . . 1 . . . . . . . . . . . 1 . . . . . . 1 . Total Hacks 302 | . 12 5 2 1 35 48 16 27 1 7 24 . 20 1 1 7 . 23 . . 17 . 23 . 15 17 Successful 196 | . 3 3 2 . 19 32 10 18 1 7 24 . 11 1 1 7 . 16 . . 17 . 11 . 7 6 Failed 102 | . 8 1 . 1 15 15 6 9 . . . . 9 . . . . 7 . . . . 12 . 8 11 Catastrophic 14 | . 2 . . 1 2 1 . 1 . . . . 2 . . . . 1 . . . . 1 . 2 1 Database Lockouts 4 | . 1 1 . . 1 1 . . . . . . . . . . . . . . . . . . . . Manual 127 | . 11 5 1 1 22 16 7 12 . . . . 9 . . 1 . 12 . . . . 8 . 10 12 Terminals 158 | . 10 5 . 1 22 29 12 11 . . . . 11 . . . . 16 . . . . 13 . 14 14 Fabricators 20 | . . . . . . . . 11 . . . . 3 . . . . 3 . . . . . . . 3 Repair Stations 30 | . . . . . 11 9 . . . . . . . . . . . . . . . . 10 . . . Recycling Units 31 | . 2 . . . 2 9 4 5 . . . . 6 . . . . 3 . . . . . . . . Scanalyzers . | . . . . . . . . . . . . . . . . . . . . . . . . . . . Garrison Access 3 | . . . . . . 1 . . . . . . . . . . . 1 . . . . . . 1 . Terminal Hacks 116 | . 3 3 2 . 4 15 7 5 1 7 24 . 4 1 1 7 . 4 . . 17 . 3 . 6 2 Record 17 | . . . 1 . . . . . . 5 6 . . . . . . . . . 5 . . . . . Part Schematic 18 | . . . . . . . 2 1 . . 10 . . . . . . 1 . . 4 . . . . . Robot Schematic 6 | . . . . . . . 1 . . . 5 . . . . . . . . . . . . . . . Robot Analysis 12 | . 2 3 . . 1 1 . 1 . . . . . . . . . . . . 4 . . . . . Prototype ID Bank 18 | . . . . . . 2 1 1 . . 3 . . . . 6 . . . . 4 . 1 . . . Open Door 13 | . . . . . . 6 . . 1 2 . . . 1 1 1 . . . . . . . . . 1 Level Access Points 1 | . . . . . . . . . . . . . . . . . . . . . . . . . 1 . Branch Access Points 5 | . . . . . 1 . . 1 . . . . 1 . . . . 1 . . . . 1 . . . Machine Index 1 | . . . . . . . . . . . . . . . . . . . . . . . . . . 1 Terminal Index 2 | . . . . . 1 . . . . . . . . . . . . 1 . . . . . . . . Fabricator Index 1 | . . . . . . . . . . . . . 1 . . . . . . . . . . . . . Repair Station Index 1 | . . . . . . . . . . . . . 1 . . . . . . . . . . . . . Alert Level 2 | . . . . . . 1 1 . . . . . . . . . . . . . . . . . . . Unreport Threat 4 | . . . . . 1 1 . . . . . . . . . . . . . . . . . . 2 . Locate Traps 7 | . 1 . . . . 3 . 1 . . . . 1 . . . . . . . . . . . 1 . Recall Investigation 1 | . . . . . . . . . . . . . . . . . . . . . . . . . 1 . Hauler Manifests 1 | . . . . . . 1 . . . . . . . . . . . . . . . . . . . . Registered Components 1 | . . . . . . . 1 . . . . . . . . . . . . . . . . . . . Zone Layout 4 | . . . . . . . 1 . . . . . . . . . . 1 . . . . 1 . 1 . Derelict Proto ID Bank 1 | . . . 1 . . . . . . . . . . . . . . . . . . . . . . . Fabricator Hacks 12 | . . . . . . . . 6 . . . . 2 . . . . 3 . . . . . . . 1 Network Status 3 | . . . . . . . . 1 . . . . 1 . . . . 1 . . . . . . . . Load Schematic 4 | . . . . . . . . 2 . . . . 1 . . . . 1 . . . . . . . . Build 5 | . . . . . . . . 3 . . . . . . . . . 1 . . . . . . . 1 Repair Station Hacks 24 | . . . . . 10 7 . . . . . . . . . . . . . . . . 7 . . . Scan Component 13 | . . . . . 5 4 . . . . . . . . . . . . . . . . 4 . . . Repair 11 | . . . . . 5 3 . . . . . . . . . . . . . . . . 3 . . . Recycling Unit Hacks 13 | . . . . . 1 6 . 1 . . . . 3 . . . . 2 . . . . . . . . Process 2 | . . . . . . 2 . . . . . . . . . . . . . . . . . . . . Report Inventory 4 | . . . . . . 2 . 1 . . . . 1 . . . . . . . . . . . . . Retrieve Matter 2 | . . . . . . 2 . . . . . . . . . . . . . . . . . . . . Retrieve Components 5 | . . . . . 1 . . . . . . . 2 . . . . 2 . . . . . . . . Scanalyzer . | . . . . . . . . . . . . . . . . . . . . . . . . . . . Garrison Access Hacks 3 | . . . . . . 1 . . . . . . . . . . . 1 . . . . . . 1 . Seal Access 3 | . . . . . . 1 . . . . . . . . . . . 1 . . . . . . 1 . Unauthorized Hacks 28 | . . . . . 4 3 3 6 . . . . 2 . . . . 6 . . . . 1 . . 3 Terminals 15 | . . . . . 3 1 2 . . . . . . . . . . 6 . . . . 1 . . 2 Assimilate 3 | . . . . . 2 . . . . . . . . . . . . 1 . . . . . . . . Botnet 8 | . . . . . 1 1 2 . . . . . . . . . . 1 . . . . 1 . . 2 Disrupt 3 | . . . . . . . . . . . . . . . . . . 3 . . . . . . . . Operators 1 | . . . . . . . . . . . . . . . . . . 1 . . . . . . . . Fabricators 5 | . . . . . . . . 4 . . . . . . . . . . . . . . . . . 1 Prioritize 2 | . . . . . . . . 1 . . . . . . . . . . . . . . . . . 1 Liberate 3 | . . . . . . . . 3 . . . . . . . . . . . . . . . . . . Repair Stations . | . . . . . . . . . . . . . . . . . . . . . . . . . . . Recycling Units 8 | . . . . . 1 2 1 2 . . . . 2 . . . . . . . . . . . . . Reject 4 | . . . . . 1 . . 1 . . . . 2 . . . . . . . . . . . . . Mask 4 | . . . . . . 2 1 1 . . . . . . . . . . . . . . . . . . Scanalyzers . | . . . . . . . . . . . . . . . . . . . . . . . . . . . Garrison Access . | . . . . . . . . . . . . . . . . . . . . . . . . . . . Data Cores Recovered 1 | . . . . . . . . . . . . . . . . . . . . . . . . . 1 . Used 1 | . . . . . . . . . . . . . . . . . . . . . . . . . 1 . Hacking Detections 67 | . 4 . . 1 7 13 5 8 . . . . 7 . . . . 7 . . . . 6 . 2 7 Full Trace Events 7 | . 1 . . . 1 . . . . . . . 2 . . . . 3 . . . . . . . . Feedback Events 1 | . . . . . . . . . . . . . . . . . . 1 . . . . . . . . Hackware Fried 1 | . . . . . . . . . . . . . . . . . . 1 . . . . . . . . Feedback Blocked . | . . . . . . . . . . . . . . . . . . . . . . . . . . . Robot Schematics Acquired 6 | . . . . . . . 1 . . . 5 . . . . . . . . . . . . . . . Robots Built 4 | . . . . . . . . 3 . . . . . . . . . . . . . . . . . 1 Authchips . | . . . . . . . . . . . . . . . . . . . . . . . . . . . Time 126 | . . . . . . . . 76 . . . . . . . . . . . . . . . . . 50 Total Robot Build Rating 20 | . . . . . . . . 15 . . . . . . . . . . . . . . . . . 5 Part Schematics Acquired 18 | . . . . . . . 2 1 . . 10 . . . . . . 1 . . 4 . . . . . Parts Built 3 | . . . . . . . . 2 . . . . . . . . . 1 . . . . . . . . Authchips 2 | . . . . . . . . 2 . . . . . . . . . . . . . . . . . . Time 136 | . . . . . . . . 72 . . . . . . . . . 64 . . . . . . . . Total Part Build Rating 14 | . . . . . . . . 6 . . . . . . . . . 8 . . . . . . . . Parts Repaired 11 | . . . . . 5 3 . . . . . . . . . . . . . . . . 3 . . . Time 434 | . . . . . 154 102 . . . . . . . . . . . . . . . . 178 . . . Parts Recycled . | . . . . . . . . . . . . . . . . . . . . . . . . . . . Recycled Matter 464 | . . . . . . 464 . . . . . . . . . . . . . . . . . . . . Retrieved Matter 803 | . . . . . . 803 . . . . . . . . . . . . . . . . . . . . Retrieved Components 17 | . . . . . 10 . . . . . . . 4 . . . . 3 . . . . . . . . Parts Scanalyzed . | . . . . . . . . . . . . . . . . . . . . . . . . . . . Part Schematics Acquired . | . . . . . . . . . . . . . . . . . . . . . . . . . . . Parts Damaged . | . . . . . . . . . . . . . . . . . . . . . . . . . . . Bothacking | -11 -10 -10 -10 -9 -8 -8 -8 -6 -6 -6 -6 -5 -5 -5 -5 -5 -4 -4 -4 -4 -4 -3 -3 -3 -2 -1 ------------ Run | Yrd Mat Min Exi Min Mat Sto Rec Fac Low Low Dat Pro Fac Upp Upp War Pro Fac Upp Upp Zhi Pro Res Qua Res Acc Used RIF Installer . | . . . . . . . . . . . . . . . . . . . . . . . . . . . Robots Hacked 7 | . . . 4 . . . . . . . . . . . . . . . . . 3 . . . . . Non-combat 3 | . . . 3 . . . . . . . . . . . . . . . . . . . . . . . Combat 4 | . . . 1 . . . . . . . . . . . . . . . . . 3 . . . . . Robot Hacks Applied 7 | . . . 4 . . . . . . . . . . . . . . . . . 3 . . . . . parse_system 7 | . . . 4 . . . . . . . . . . . . . . . . . 3 . . . . . Relay Couplers Released . | . . . . . . . . . . . . . . . . . . . . . . . . . . . Fabnet Peak Effective % . | . . . . . . . . . . . . . . . . . . . . . . . . . . . Robots Rewired 1 | . . . . . . . 1 . . . . . . . . . . . . . . . . . . . Allies Hacked . | . . . . . . . . . . . . . . . . . . . . . . . . . . . Hacks Repelled . | . . . . . . . . . . . . . . . . . . . . . . . . . . . Allies | -11 -10 -10 -10 -9 -8 -8 -8 -6 -6 -6 -6 -5 -5 -5 -5 -5 -4 -4 -4 -4 -4 -3 -3 -3 -2 -1 -------- Run | Yrd Mat Min Exi Min Mat Sto Rec Fac Low Low Dat Pro Fac Upp Upp War Pro Fac Upp Upp Zhi Pro Res Qua Res Acc Total Allies 19 | . . 3 . . . 2 1 8 . 3 . . . . . . . 1 . . . . . . . 1 Largest Group 6 | . . 3 3 3 2 2 1 6 5 3 . . . . . . . 1 . . . . . . . 1 Highest-Rated Group 198 | . . 40 40 40 32 62 34 198 157 93 . . . . . . . 10 . . . . . . . 19 Highest-Rated Ally 41 | . . 16 16 16 16 31 34 41 41 31 . . . . . . . 10 . . . . . . . 19 Total Orders 10 | . . . . . 3 . . . . . . . . . . . . 7 . . . . . . . . STAY 7 | . . . . . 3 . . . . . . . . . . . . 4 . . . . . . . . FOLLOW 3 | . . . . . . . . . . . . . . . . . . 3 . . . . . . . . Ally Attacks 103 | . . . . 12 22 5 . 44 . 20 . . . . . . . . . . . . . . . . Total Damage 1596 | . . . . 127 258 85 . 917 . 209 . . . . . . . . . . . . . . . . Kills 21 | . . . . 4 4 . . 8 . 5 . . . . . . . . . . . . . . . . Allies Corrupted 2 | . . . . . . . . . 2 . . . . . . . . . . . . . . . . . Allies Melted 1 | . . . . . . 1 . . . . . . . . . . . . . . . . . . . . Intel | -11 -10 -10 -10 -9 -8 -8 -8 -6 -6 -6 -6 -5 -5 -5 -5 -5 -4 -4 -4 -4 -4 -3 -3 -3 -2 -1 ------- Run | Yrd Mat Min Exi Min Mat Sto Rec Fac Low Low Dat Pro Fac Upp Upp War Pro Fac Upp Upp Zhi Pro Res Qua Res Acc Robot Analysis Total 12 | . 2 3 . . 1 1 . 1 . . . . . . . . . . . . 4 . . . . . Derelict Logs Recovered 13 | . . 2 . 1 . . . . 1 1 . 2 . 1 2 . 1 . 2 . . . . . . . Drone Launches . | . . . . . . . . . . . . . . . . . . . . . . . . . . . Drone Recoveries . | . . . . . . . . . . . . . . . . . . . . . . . . . . . Exploration | -11 -10 -10 -10 -9 -8 -8 -8 -6 -6 -6 -6 -5 -5 -5 -5 -5 -4 -4 -4 -4 -4 -3 -3 -3 -2 -1 ------------- Run | Yrd Mat Min Exi Min Mat Sto Rec Fac Low Low Dat Pro Fac Upp Upp War Pro Fac Upp Upp Zhi Pro Res Qua Res Acc Turns Passed 14335 | 9 1057 1003 510 905 2176 2998 236 544 353 346 22 253 437 294 221 378 107 365 114 79 144 116 524 188 606 350 Spaces Moved 17434 | 3 475 593 311 538 931 1719 523 1242 963 992 78 599 813 739 640 950 368 636 402 266 211 323 847 329 1407 536 Core 24 | . . . . . . . . . . . . . 24 . . . . . . . . . . . . . Treads 4143 | 3 475 593 311 538 931 1292 . . . . . . . . . . . . . . . . . . . . Legs . | . . . . . . . . . . . . . . . . . . . . . . . . . . . Wheels . | . . . . . . . . . . . . . . . . . . . . . . . . . . . Hover . | . . . . . . . . . . . . . . . . . . . . . . . . . . . Flight 13267 | . . . . . . 427 523 1242 963 992 78 599 789 739 640 950 368 636 402 266 211 323 847 329 1407 536 Fastest Speed 23 | 160 160 160 160 160 160 29 29 26 26 23 26 24 24 24 27 23 23 23 25 25 25 25 25 29 29 33 Average Speed 59 | 160 160 160 160 160 160 131 33 26 26 25 26 24 27 24 27 25 23 23 25 25 50 25 29 29 32 33 Slowest Speed 192 | 160 160 160 160 160 160 192 102 26 26 26 26 96 150 27 99 99 23 25 25 25 99 25 106 106 33 33 Overloaded Moves . | . . . . . . . . . . . . . . . . . . . . . . . . . . . Propulsion Burnouts . | . . . . . . . . . . . . . . . . . . . . . . . . . . . Robots Hopped 59 | . . . . . . . 7 5 . 1 . 1 5 2 3 . . 5 4 . . 2 6 6 6 6 Cave-ins Triggered . | . . . . . . . . . . . . . . . . . . . . . . . . . . . Exploration Rate (%) 58 | 2 59 98 70 98 48 96 92 30 81 78 69 57 17 86 88 90 53 17 58 53 60 48 24 52 38 17 Regions Visited 26 Branch Regions 18 Pre-discovered Areas 6 | . . . 1 . . . . . . . 1 . . . . . . . 1 . 3 . . . . . Known Exits Taken 10 | . . . 1 . 1 . . 1 . . . . 1 . . . 1 1 1 . . 1 1 . 1 . Unknown Exits Taken 16 | 1 1 1 . 1 . 1 1 . 1 1 1 1 . 1 1 1 . . . 1 1 . . 1 . . Scrap Searched 29 | . . 1 . 2 . . . . 5 5 . 1 . 3 4 . 3 . 4 1 . . . . . . Spaces Dug 186 | . . 6 . . 11 1 3 3 6 . . 3 3 33 4 2 3 40 1 . . 2 22 10 3 30 Terrain Destroyed 451 | . . 15 . 21 14 31 3 3 14 . . 28 3 54 23 2 3 40 1 . . 2 51 10 13 120 Melee 83 | . . . . . 2 1 3 3 5 . . 3 1 4 3 2 3 10 1 . . 2 18 10 3 9 Projectile 35 | . . . . . . . . . 1 . . . 2 13 1 . . 6 . . . . 4 . . 8 AOE 333 | . . 15 . 21 12 30 . . 8 . . 25 . 37 19 . . 24 . . . . 29 . 10 103 Terrain Rammed . | . . . . . . . . . . . . . . . . . . . . . . . . . . . Walls Destroyed . | . . . . . . . . . . . . . . . . . . . . . . . . . . . Machines Disabled . | . . . . . . . . . . . . . . . . . . . . . . . . . . . Actions | -11 -10 -10 -10 -9 -8 -8 -8 -6 -6 -6 -6 -5 -5 -5 -5 -5 -4 -4 -4 -4 -4 -3 -3 -3 -2 -1 --------- Run | Yrd Mat Min Exi Min Mat Sto Rec Fac Low Low Dat Pro Fac Upp Upp War Pro Fac Upp Upp Zhi Pro Res Qua Res Acc Total 20470 | 6 705 623 321 577 1459 2310 566 1438 1049 1067 78 682 998 819 670 1068 381 797 406 277 238 350 1035 366 1517 667 Wait 2079 | 1 165 7 . 24 363 391 31 144 68 50 . 58 156 52 18 74 7 124 3 12 1 26 122 4 80 98 Move 17293 | 2 474 592 310 537 930 1718 508 1231 962 989 77 596 802 734 633 949 367 626 393 265 210 318 835 316 1396 523 Hop 55 | . . . . . . . 7 5 . 1 . 1 5 2 3 . . 4 4 . . 2 5 6 4 6 Pick Up 89 | . 9 1 2 4 17 15 2 9 3 1 . 1 3 2 2 2 1 2 1 . 2 . 4 3 1 2 Fast Attach 92 | . 1 . 1 1 13 14 3 5 . 3 . 1 2 . . 15 . 2 1 . 5 . 11 4 8 2 Attach 26 | . . . . . 4 5 . 3 . . . . 3 2 . . . 3 1 . . . 1 1 1 2 Detach 24 | . . . 1 . . 8 . 3 . 1 . . 1 . . 2 . 2 . . 1 . . 1 2 2 Swap 147 | 3 7 5 2 5 21 27 7 . 7 8 1 10 6 5 5 4 . 6 . . 5 2 6 2 2 1 Drop 135 | . 8 2 1 2 15 34 3 7 1 3 . 2 5 . 2 16 1 2 1 . 6 . 9 5 8 2 Fire 190 | . 34 13 . 2 52 13 . . 2 . . 5 6 18 3 . . 8 . . 6 . 6 1 1 20 Melee 263 | . . . 4 . 22 74 5 13 6 5 . 4 5 4 4 6 5 18 2 . 2 2 36 23 14 9 Ram . | . . . . . . . . . . . . . . . . . . . . . . . . . . . Kick . | . . . . . . . . . . . . . . . . . . . . . . . . . . . Crush 19 | . 1 3 . 2 13 . . . . . . . . . . . . . . . . . . . . . Escape Stasis 18 | . . . . . . . . 18 . . . . . . . . . . . . . . . . . . Rewire 4 | . . . . . . . . . . . . . 4 . . . . . . . . . . . . . Trap 36 | . 6 . . . 9 11 . . . 6 . 4 . . . . . . . . . . . . . . Miscellaneous . | . . . . . . . . . . . . . . . . . . . . . . . . . . . Route ------- -11/Scrapyard -10/Materials (discovered 2 exits: [*Mat] / *Min) -10/Mines (discovered 3 exits: [*Mat x2] / *Exi) -10/Exiles (discovered 2 exits: *Min x2) -9/Mines (discovered 2 exits: *Mat x2) -8/Materials (discovered 2 exits: [*Fac] / *Sto) -8/Storage (discovered 2 exits: [*Fac] / *Rec) -8/Recycling -6/Factory (discovered 5 exits: *Fac / *Low x2 / Ext x2) -6/Lower Caves -6/Lower Caves (discovered 2 exits: *Fac / *Dat) -6/Data Miner -5/Proximity Caves -5/Factory (discovered 4 exits: *Fac x2 / *Upp x2) -5/Upper Caves -5/Upper Caves (discovered 2 exits: *Fac / *War) -5/Warlord -4/Proximity Caves -4/Factory (discovered 4 exits: Res x2 / *Upp x2) -4/Upper Caves -4/Upper Caves (discovered 2 exits: *Res / *Zhi) -4/Zhirov -3/Proximity Caves -3/Research (discovered 3 exits: *Arm / *Qua x2) -3/Quarantine -2/Research (discovered 3 exits: *Acc x3) -1/Access Tau Ceti IV Orbit History --------- Turn | Location | Event 6 | -11/Scrapyard | Discovered new exit (range 3) 10 | -11/Scrapyard | Entered Materials 300 | -10/Materials | Build established: Mutant 424 | -10/Materials | Discovered new exit (range 15) 603 | -10/Materials | Discovered new exit (range 14) 710 | -10/Materials | Derelicts attacked the area 957 | -10/Materials | Central database locked down 1067 | -10/Materials | Entered Mines 1142 | -10/Mines | Received a Rocket Launcher from a helpful Derelict 1273 | -10/Mines | Met a Derelict testing a Signal Generator 1476 | -10/Mines | Learned Materials stockpile data 1479 | -10/Mines | Discovered new exit (range 7) 1816 | -10/Mines | Discovered new exit (range 13) 1898 | -10/Mines | Central database locked down 1957 | -10/Mines | Assisted by bots powering up and referring to "LRC-V3" 2061 | -10/Mines | Deemed a non-threat by the Exiles lab entrance 2062 | -10/Mines | Discovered new exit (range 5) 2070 | -10/Mines | Entered Exiles 2070 | -10/Exiles | Accompanied by 3 allies 2071 | -10/Exiles | Identified exit to Mines 2117 | -10/Exiles | Met 8R-AWN 2147 | -10/Exiles | Met EX-HEX 2245 | -10/Exiles | Met EX-DEC 2304 | -10/Exiles | Learned location of Zion (-7) 2333 | -10/Exiles | Met EX-BIN 2358 | -10/Exiles | Aligned with FarCom system 2360 | -10/Exiles | Given EX-Vault access code 2398 | -10/Exiles | Opened EX-Vault 2408 | -10/Exiles | Found Trap Reconfigurator 2441 | -10/Exiles | Warned to stay clear of 0b10 Research branches 2580 | -10/Exiles | Left Exiles lab with Trap Reconfigurator 2580 | -10/Exiles | Entered Mines 2580 | -9/Mines | Accompanied by 3 allies 2646 | -9/Mines | Learned Materials trap positions 2681 | -9/Mines | Discovered new exit (range 11) 2723 | -9/Mines | Discovered new exit (range 6) 3095 | -9/Mines | A weapon hastily lodged in a ceiling crevice suddenly fell to the ground 3223 | -9/Mines | Found a hidden stash of uninstalled traps 3485 | -9/Mines | Entered Materials 3485 | -8/Materials | Accompanied by 2 allies 3485 | -8/Materials | Evolved 4 slots: Propulsion x1, Utility x3 3486 | -8/Materials | Loaded intel: 31 trap records 3520 | -8/Materials | Build established: Trapper-Mutant 4080 | -8/Materials | Lost 4 parts (2n1u1w) 4136 | -8/Materials | Identified exit to Storage 4136 | -8/Materials | Central database locked down 4372 | -8/Materials | Repaired Imp. Treads 4406 | -8/Materials | Repaired Imp. Treads 5075 | -8/Materials | Discovered new exit (range 10) 5225 | -8/Materials | Build established: Trapper-Gladiator 5501 | -8/Materials | Repaired Imp. Treads 5535 | -8/Materials | Repaired Imp. Treads 5562 | -8/Materials | Repaired Lgt. Treads 5661 | -8/Materials | Entered Storage 5787 | -8/Storage | Central database locked down 6506 | -8/Storage | Discovered new exit (range 13) 6888 | -8/Storage | Repaired Hvy. Mace 6921 | -8/Storage | Repaired Lgt. Treads 7488 | -8/Storage | Repaired Imp. Light Armor Plating 8079 | -8/Storage | Met a pair of Derelict thieves 8533 | -8/Storage | Found Prototype Launcher 8533 | -8/Storage | Identified Gui. Missile Launcher 8658 | -8/Storage | Used back door to open Recycling access 8658 | -8/Storage | Discovered new exit (range 5) 8659 | -8/Storage | Entered Recycling 8760 | -8/Recycling | Discovered new exit (range 16) 8895 | -8/Recycling | Entered Factory 8895 | -6/Factory | Accompanied by 1 ally 8895 | -6/Factory | Evolved 4 slots: Power x1, Propulsion x2, Utility x1 8937 | -6/Factory | Fabricated Hacking Suite (x1) 8974 | -6/Factory | Fabricated Hacking Suite? 9102 | -6/Factory | Fabricated G-50 Soldier (x3) 9239 | -6/Factory | Build established: Hacker-Sprinter 9295 | -6/Factory | Discovered new exit (range 12) 9368 | -6/Factory | Identified exit to Lower Caves 9368 | -6/Factory | Identified exit to Extension 9439 | -6/Factory | Entered Lower Caves 9439 | -6/Lower Caves | Accompanied by 5 allies 9498 | -6/Lower Caves | Lost 5 allies 9594 | -6/Lower Caves | Learned Factory terminal intel 9683 | -6/Lower Caves | Attracted the attention of an 0b10 checkpoint 9688 | -6/Lower Caves | Spotted B-75 Beast 9728 | -6/Lower Caves | Discovered new exit (range 7) 9792 | -6/Lower Caves | Entered another Lower Caves area 9811 | -6/Lower Caves | Discovered new exit (range 10) 9848 | -6/Lower Caves | A Commander dispatched an escort 9849 | -6/Lower Caves | Learned Armory terminal intel 9849 | -6/Lower Caves | Learned Factory garrison access intel 9849 | -6/Lower Caves | Learned Research garrison access intel 9975 | -6/Lower Caves | Attacked by a delusional Derelict stockpiling parts 10057 | -6/Lower Caves | Learned location of 1 exit from Factory 10098 | -6/Lower Caves | Discovered new exit (range 10) 10138 | -6/Lower Caves | Entered Data Miner 10138 | -6/Data Miner | Discovered new exit (range 6) 10143 | -6/Data Miner | Met Data Miner 10150 | -6/Data Miner | Learned location of Section 7 (-3) 10150 | -6/Data Miner | Acquired the access code to Warlord's prototype stash 10154 | -6/Data Miner | Received God Mode back door access code from Data Miner 10160 | -6/Data Miner | Entered Proximity Caves 10182 | -5/Proximity Caves | Attracted the attention of an 0b10 checkpoint 10212 | -5/Proximity Caves | Spotted B-75 Beast 10330 | -5/Proximity Caves | Learned Factory stockpile data 10333 | -5/Proximity Caves | Discovered new exit (range 5) 10371 | -5/Proximity Caves | Found Prototype Special Weapon 10371 | -5/Proximity Caves | Identified Molecular Deconstructor 10413 | -5/Proximity Caves | Entered Factory 10413 | -5/Factory | Evolved 2 slots: Propulsion x1, Utility x1 10414 | -5/Factory | Identified exit to Factory 10416 | -5/Factory | Loaded intel: 26 terminal locations 10417 | -5/Factory | Loaded intel: 4 garrison access locations 10419 | -5/Factory | Identified exit to Upper Caves 10712 | -5/Factory | Discovered exit to Factory (range 5) 10850 | -5/Factory | Entered Upper Caves 10929 | -5/Upper Caves | Learned location of 1 exit from Factory 11091 | -5/Upper Caves | Attracted the attention of an 0b10 checkpoint 11124 | -5/Upper Caves | Discovered new exit (range 5) 11144 | -5/Upper Caves | Entered another Upper Caves area 11148 | -5/Upper Caves | Spotted B-75 Beast 11188 | -5/Upper Caves | Discovered exit to Factory (range 6) 11235 | -5/Upper Caves | Encountered a Warlord checkpoint 11296 | -5/Upper Caves | Learned Factory garrison access intel 11328 | -5/Upper Caves | Learned 4 Factory zone layouts 11330 | -5/Upper Caves | Discovered new exit (range 8) 11365 | -5/Upper Caves | Entered Warlord 11510 | -5/Warlord | Found Signal Generator 11514 | -5/Warlord | Found Signal Generator 11557 | -5/Warlord | Warlord's base attacked by MAIN.C 11584 | -5/Warlord | Met Warlord 11588 | -5/Warlord | Opened Warlord's prototype stash 11610 | -5/Warlord | Found Prototype Reactor 11610 | -5/Warlord | Identified Vortex Chain Reactor 11636 | -5/Warlord | Found Prototype Energy Cannon 11636 | -5/Warlord | Identified Vortex Driver 11712 | -5/Warlord | Spotted B-86 Titan 11715 | -5/Warlord | Spotted B-75 Beast 11730 | -5/Warlord | Lost 3 allies 11740 | -5/Warlord | Discovered new exit (range 12) 11743 | -5/Warlord | Entered Proximity Caves 11790 | -4/Proximity Caves | Learned 4 Research zone layouts 11827 | -4/Proximity Caves | Discovered exit to Factory (range 14) 11850 | -4/Proximity Caves | Entered Factory 11850 | -4/Factory | Evolved 2 slots: Propulsion x1, Utility x1 11851 | -4/Factory | Identified exit to Research 11853 | -4/Factory | Loaded intel: 4 garrison access locations 11868 | -4/Factory | Identified exit to Upper Caves 11911 | -4/Factory | Imp. Hacking Suite fried by hacking feedback 11952 | -4/Factory | Lost 3 parts (1p1u1w) 12080 | -4/Factory | Fabricated Impulse Thruster Array (x1) 12100 | -4/Factory | Search patrols dispatched 12215 | -4/Factory | Entered Upper Caves 12217 | -4/Upper Caves | Identified exit to Upper Caves 12263 | -4/Upper Caves | Attracted the attention of an 0b10 checkpoint 12302 | -4/Upper Caves | Attracted the attention of an 0b10 outpost 12324 | -4/Upper Caves | Found Alien Artifact 12329 | -4/Upper Caves | Entered another Upper Caves area 12335 | -4/Upper Caves | Discovered exit to Research (range 7) 12353 | -4/Upper Caves | Attracted the attention of an 0b10 checkpoint 12392 | -4/Upper Caves | Discovered new exit (range 16) 12408 | -4/Upper Caves | Entered Zhirov 12408 | -4/Zhirov | Discovered new exit (range 3) 12413 | -4/Zhirov | Met Zhirov 12419 | -4/Zhirov | Learned location of Quarantine (-3) 12419 | -4/Zhirov | Learned location of Testing (-2) 12419 | -4/Zhirov | Learned location of Command (-1) 12420 | -4/Zhirov | Zhirov requested help retrieving the SGEMP Prototype 12425 | -4/Zhirov | Found Alien Artifact 12425 | -4/Zhirov | Identified Integrated Dissipator 12425 | -4/Zhirov | Installed Integrated Dissipator, increased core heat dissipation (+20) 12541 | -4/Zhirov | Found Alien Artifact 12552 | -4/Zhirov | Entered Proximity Caves 12665 | -3/Proximity Caves | Discovered exit to Research (range 7) 12668 | -3/Proximity Caves | Entered Research 12668 | -3/Research | Evolved 2 slots: Utility x2 12670 | -3/Research | Loaded intel: 4 garrison access locations 12750 | -3/Research | Repaired Exp. Propulsion Shielding? 12807 | -3/Research | Repaired Imp. Light Armor Plating? 12878 | -3/Research | Repaired Imp. VTOL Module 13049 | -3/Research | Discovered new exit (range 8) 13098 | -3/Research | Identified exit to Armory 13098 | -3/Research | Identified exit to Quarantine 13134 | -3/Research | Spotted B-86 Titan 13178 | -3/Research | Spotted B-90 Cyclops 13192 | -3/Research | Entered Quarantine 13193 | -3/Quarantine | Maximum security lockdown engaged 13225 | -3/Quarantine | Found Alien Artifact 13251 | -3/Quarantine | Met incapacitated Sigix Warrior 13251 | -3/Quarantine | Lockdown squad dispatched 13373 | -3/Quarantine | Discovered new exit (range 11) 13380 | -3/Quarantine | Entered Research 13380 | -2/Research | Warlord forces began assault on 0b10 13380 | -2/Research | Evolved 2 slots: Propulsion x1, Utility x1 13415 | -2/Research | Identified exit to Access 13490 | -2/Research | Research machine network offline 13692 | -2/Research | Build established: Wizard-Sprinter 13889 | -2/Research | Met up with Warlord 13941 | -2/Research | Spotted Executioner 13941 | -2/Research | Spotted Executioner 13975 | -2/Research | Lost 4 allies 13986 | -2/Research | Entered Access 13986 | -1/Access | Evolved 2 slots: Utility x2 13989 | -1/Access | Identified Subatomic Replicator 13989 | -1/Access | Used Subatomic Replicator to replicate Sigix Containment Pod 14094 | -1/Access | Garrison activated, responded to threat 14118 | -1/Access | Fabricated R-10 Processor? 14282 | -1/Access | Discovered new exit (range 6) 14336 | *** | Destroyed 0b10! Last Messages --------------- 14329_ Y-72 Warden Adv. Heat Sink ripped off. 14329_ Y-72 Warden Particle Reactor ripped off. 14329_ Destroyed Welding Torch. 14329_ Destroyed Lgt. Ion Engine. 14329_ Destroyed Wheel. 14329_ U-05 Engineer builds a Wall. 14330_ U-05 Engineer lays Concrete. 14331_ U-05 Engineer builds a Wall. 14331_ U-05 Engineer lays Concrete. 14331_ K-01 Serf collects debris. 14332_ U-05 Engineer lays Concrete. 14332_ Vortex penetrates Y-72 Warden. 14332_ Y-72 Warden suffers critical hit (Sunder). 14332_ Y-72 Warden Quantum Rifle ripped off. 14332_ Y-72 Warden destroyed. 14332_ U-05 Engineer destroyed. 14334_ The unstable cave ceiling collapses. 14334_ K-01 Serf crushed by falling debris. 14334_ K-01 Serf destroyed. 14334_ U-05 Engineer lays Concrete. Map ----- +----------------------------------------------------+ | ??????????# #???????????????????????????????????? | | ??????????# #???????????????????????????????????? | | ########### #???????????????????????????????????? | | ## #???????????????????????????????????? | | ## #???????????????????????????????????? | | = ## #???????????????????????????????????? | | = ## ##??????????????????????????????????? | | # ####### ????????????????????????? | | / "T ???????????????????????? | | # "" ???????????????????????? | | # ####### #???????????????????????? | | ## ##??????????#???????????????????????? | | ## #???????????????????????????????????? | | ## #???????????????????????????????????? | | ## #???????????????????????????????????? | | ##/######## #???????????????????????????????????? | | ##?????# ??????????????????????????????????? | | ####### [ # ###??????????????????????????????? | | # ##! ####???????????????????????????? | | # # ## ##########??????????????????? | | # ! ##= """ "??????????????????? | | # #=*! "" "????BB????????????? | | # ## *%= "????BB????????????? | | # ## %=[ "??????????????????? | | / ## * "" "??????????????????? | | # ## @" "??????????????????? | | # ## % "??????????????????? | | # !##!% u "????BB????????????? | | # ## [% "????BB????????????? | | # ## = "??????????????????? | | ######## # # ##########??????????????????? | | #????# # # ###???????????????????????????? | | ####???# ## # k### ?????????????????????????????? | | ?????? # # #???#?????????????????????????????? | | ?????? # # ??????????????????????????????????? | | ??????? ??????????????????????????????????? | | ???????? = ??????????????????????????????????? | | ????????? %% ??????g?g?g????????????????????????? | | ??????????? ?????????g?g?????????????????????????? | | ?????????????????????????????????????????????????? | | "T""""???????????????????????p???????????????????? | | """""""?????????????????????? ???????????????????? | | ????????????????????????????? ???????????????????? | | ########### #??????????????? ???????????????????? | | #??????????????? ???????????????????? | | + ????????? #??????????????????? | | ############ # ?????????? #??????????????????? | | ## #????????????????? #??????????????????? | | ## / #??????????????# #??????????????????? | | ## ###??????????????# #??????????????????? | +----------------------------------------------------+ Best States ------------- Heat Dissipation 72 Energy Generation 39 Energy Capacity 720 Matter Stores 300 Matter Capacity 300 Sight Range 16 Robot Scan Range 15 Terrain Scan Range 16 Terrain Scan Density 210 ECM Strength 2 Jamming Range 16 Additional Mass Support 9 Armor Coverage 375 Resistance: TH 10 Propulsion Shielding 90 Weapon Shielding 33 Phase Shifting 15 Evasion (%) 86 Melee Accuracy 12 Recoil Reduction 3 Offensive Hacking 50 Defensive Hacking 24 Authchip Count 2 Trap Extractor Capacity 4 Item Schematics ----------------- Hacking Suite | -8/Recycling | Hacked Imp. Medium Armor Plating | -8/Recycling | Hacked Hyp. Mass Driver | -6/Factory | Hacked Combat Drone Bay | -6/Data Miner | Free Lgt. Regenerative Plating | -6/Data Miner | Free Cld. Gravmag System | -6/Data Miner | Free Imp. Energy Well | -6/Data Miner | Free Thunder Hammer | -6/Data Miner | Free Imp. Heavy Treads | -6/Data Miner | Free Imp. System Guard | -6/Data Miner | Free Force Lance | -6/Data Miner | Free Adv. Drone Bay | -6/Data Miner | Free Quantum Rifle | -6/Data Miner | Free Impulse Thruster Array | -4/Factory | Hacked Assault Drone Bay | -4/Zhirov | Free Exp. Heat Sink | -4/Zhirov | Free Exp. Optical Array | -4/Zhirov | Free Imp. Arc Thrower | -4/Zhirov | Free Robot Schematics ------------------ M-28 Smith | -8/Recycling | Hacked P-70 Sage | -6/Data Miner | Free G-50 Soldier | -6/Data Miner | Free A-15 Conveyor | -6/Data Miner | Free H-66 Slayer | -6/Data Miner | Free M-30 Cleanser | -6/Data Miner | Free Fabricated ------------ Hacking Suite | x1 | -6/Factory | Authchip Hacking Suite | x1 | -6/Factory | Authchip G-50 Soldier | x3 | -6/Factory | Preloaded Impulse Thruster Array | x1 | -4/Factory R-10 Processor | x1 | -1/Access | Preloaded Alien Tech Used ----------------- Integrated Dissipator Subatomic Replicator Achievements -------------- None Challenges ------------ None Game ------ Seed DynamicAlphaSheargun Manual? 0 Play Time 02:22:15 Cumulative 1528.0 hours Start 2024.04.16 @ 04:00:06 End 2024.04.17 @ 02:18:06 Sessions 3 Manual Loads 0 Difficulty Rogue Special Mode None Game No. 1055 Rogue 1051 Adventurer 4 Explorer 0 Win Type 3 Total 191 Types 139/11/14/9/2/1/3/8/4 Lore% 95 Gallery% 99 Achievement% 98 Wizard Run 0 Options --------- Layout 2 ASCII 0 Keyboard 1 Movement Vi Keybinds 0 Fullscreen 0 Font 24/Terminus Map View 59x48 Zoom Use 0% Tactical HUD 1 Map Filters NONE Filters NONE Steam 1 RUN: 4d86636a-6b6d-4365-ab83-5fc72847fe92